Workbook

Sheet Лист1
A1: Школа | C1: МБОУ "Старописьмянская основная общеобразовательная школа" | F1: Утвердил: | G1: должность | H1: Директор ООО «Фудсоцсервис»
A2: Типовое примерное меню приготавливаемых блюд | G2: фамилия | H2: Харламова Э.Р.
A3: Возрастная категория | E3: 7-11 лет | G3: дата | J3: 2026
H4: день | I4: месяц | J4: год
A5: Неделя | B5: День недели | C5: Прием пищи | D5: Раздел меню | E5: Блюда | F5: Вес блюда, г | G5: Белки | H5: Жиры | I5: Углеводы | J5: Калорийность | K5: № рецептуры | L5: Цена
A6: 1 | B6: 1 | C6: Завтрак | D6: гор.блюдо | E6: Суп-лапша домашняя с мясом птицы | F6: 250/10 | G6: 5.65 | H6: 6.1 | I6: 11.62 | J6: 132.55 | K6: 113
D8: гор.напиток | E8: Напиток из шиповника | F8: 200 | G8: 0.68 | H8: 0.28 | I8: 10.78 | J8: 48.2 | K8: ТТК
D9: хлеб | E9: Хлеб ржаной | F9: 30 | G9: 1.98 | H9: 0.36 | I9: 11.88 | J9: 59.4 | K9: 134.144
D13: итого | F13: 490 | G13: =SUM(G6:G12) -> 8.31 | H13: =SUM(H6:H12) -> 6.74 | I13: =SUM(I6:I12) -> 34.28 | J13: =SUM(J6:J12) -> 240.15 | L13: 29.73
A14: =A6 -> 1 | B14: =B6 -> 1 | C14: Обед | D14: закуска | E14: Икра кабачковая | F14: 60 | G14: 0.64 | H14: 3.31 | I14: 5.03 | J14: 50.28 | K14: ТТК
D15: 1 блюдо
D16: 2 блюдо | E16: Котлета из мяса птицы с макаронными изделиями отварными, с маслом сливочным | F16: 75/150/5 | G16: 11.45 | H16: 12.46 | I16: 31.32 | J16: 289.95 | K16: ТТК
D17: гарнир
D18: напиток | E18: Компот из сухофруктов (75С) | F18: 200 | G18: 0.66 | H18: 0.09 | I18: 22.03 | J18: 92.8 | K18: 349
D19: хлеб | E19: Хлеб ржаной | F19: 30 | G19: 1.98 | H19: 0.36 | I19: 11.88 | J19: 59.4 | K19: 144
D23: итого | F23: 520 | G23: =SUM(G14:G22) -> 14.73 | H23: =SUM(H14:H22) -> 16.22 | I23: =SUM(I14:I22) -> 70.26 | J23: =SUM(J14:J22) -> 492.43 | L23: 77.76
A24: =A6 -> 1 | B24: =B6 -> 1 | C24: Итого за день: | F24: =F13+F23 -> 1010 | G24: =G13+G23 -> 23.04 | H24: =H13+H23 -> 22.96 | I24: =I13+I23 -> 104.54 | J24: =J13+J23 -> 732.58 | L24: =L13+L23 -> 107.49
A25: 1 | B25: 2 | C25: Завтрак | D25: гор.блюдо | E25: Борщ из свежей капусты с мясными фрикадельками, со сметаной | F25: 250/10/5 | G25: 3.93 | H25: 6.84 | I25: 11.19 | J25: 131.46 | K25: 82
D27: гор.напиток | E27: Компот из сухофруктов | F27: 200 | G27: 0.66 | H27: 0.09 | I27: 12.03 | J27: 92.9 | K27: 349
D28: хлеб | E28: Хлеб ржаной | F28: 30 | G28: 1.98 | H28: 0.36 | I28: 11.88 | J28: 59.4 | K28: 134.144
D32: итого | F32: 495 | G32: =SUM(G25:G31) -> 6.57 | H32: =SUM(H25:H31) -> 7.29 | I32: =SUM(I25:I31) -> 35.1 | J32: =SUM(J25:J31) -> 283.76 | L32: 29.73
A33: =A25 -> 1 | B33: =B25 -> 2 | C33: Обед | D33: закуска | E33: Сыр порционно | F33: 10 | G33: 2.63 | H33: 2.86 | I33: 0 | J33: 34.33 | K33: 15
D34: 1 блюдо
D35: 2 блюдо | E35: Гуляш из говядины | F35: 50/50 | G35: 10.39 | H35: 14.79 | I35: 10.3 | J35: 221 | K35: ТТК
D36: гарнир | E36: Каша гречневая рассыпчатая | F36: 150 | G36: 3.77 | H36: 2.29 | I36: 39.72 | J36: 241 | K36: 171
D37: напиток | E37: Чай с сахаром, с лимоном | F37: 185/10/5 | G37: 0.11 | H37: 0.02 | I37: 10.15 | J37: 41.32 | K37: 377
D38: хлеб | E38: Хлеб ржаной | F38: 50 | G38: 3.3 | H38: 0.6 | I38: 19.8 | J38: 99 | K38: 134
D42: итого | F42: 510 | G42: =SUM(G33:G41) -> 20.2 | H42: =SUM(H33:H41) -> 20.56 | I42: =SUM(I33:I41) -> 79.97 | J42: =SUM(J33:J41) -> 636.65 | L42: 77.76
A43: =A25 -> 1 | B43: =B25 -> 2 | C43: Итого за день: | F43: =F32+F42 -> 1005 | G43: =G32+G42 -> 26.77 | H43: =H32+H42 -> 27.85 | I43: =I32+I42 -> 115.07 | J43: 1 | L43: =L32+L42 -> 107.49
A44: 1 | B44: 3 | C44: Завтрак | D44: гор.блюдо | E44: Рассольник Ленинградский, с куриными фрикадельками, со сметаной | F44: 250/10/5 | G44: 3.51 | H44: 7.16 | I44: 12.96 | J44: 135.95 | K44: 96.105
D45: напиток | E45: Чай с сахаром | F45: 190/10 | G45: 0.07 | H45: 0.02 | I45: 10 | J45: 40 | K45: 376
D46: гор.напиток
D47: хлеб | E47: Хлеб ржаной | F47: 30 | G47: 1.98 | H47: 0.36 | I47: 11.88 | J47: 59.4 | K47: 134
D51: итого | F51: 495 | G51: =SUM(G44:G50) -> 5.56 | H51: =SUM(H44:H50) -> 7.54 | I51: =SUM(I44:I50) -> 34.84 | J51: =SUM(J44:J50) -> 235.35 | L51: 29.73
A52: =A44 -> 1 | B52: =B44 -> 3 | C52: Обед | D52: закуска | E52: Свекла отварная дольками | F52: 60 | G52: 1.08 | H52: 0.06 | I52: 5.88 | J52: 28.8 | K52: ТТК
D53: 1 блюдо
D54: 2 блюдо | E54: Птица запеченная | F54: 100 | G54: 10.42 | H54: 12.43 | I54: 8.65 | J54: 192 | K54: ТТК
D55: гарнир | E55: Пюре картофельное с маслом сливочным | F55: 150/3 | G55: 3.08 | H55: 6.25 | I55: 20.47 | J55: 150.45 | K55: 312
D56: напиток | E56: Компот из сухофруктов | F56: 200 | G56: 0.66 | H56: 0.09 | I56: 22.03 | J56: 92.8 | K56: 349
D57: хлеб | E57: Хлеб ржаной | F57: 40 | G57: 2.64 | H57: 0.48 | I57: 15.84 | J57: 79.2 | K57: 144
D58: хлеб | E58: Хлеб пшеничный | F58: 30 | G58: 2.28 | H58: 0.24 | I58: 14.76 | J58: 70.5 | K58: 134
D61: итого | F61: 583 | G61: =SUM(G52:G60) -> 20.16 | H61: =SUM(H52:H60) -> 19.55 | I61: =SUM(I52:I60) -> 87.63 | J61: =SUM(J52:J60) -> 613.75 | L61: 77.76
A62: =A44 -> 1 | B62: =B44 -> 3 | C62: Итого за день: | F62: =F51+F61 -> 1078 | G62: =G51+G61 -> 25.72 | H62: =H51+H61 -> 27.09 | I62: =I51+I61 -> 122.47 | J62: =J51+J61 -> 849.1 | L62: =L51+L61 -> 107.49
A63: 1 | B63: 4 | C63: Завтрак | D63: гор.блюдо | E63: Шулпа с индейкой | F63: 250/10 | G63: 4.88 | H63: 4.94 | I63: 16.9 | J63: 143.4 | K63: ТТК
D65: гор.напиток | E65: Чай с сахаром и лимоном | F65: 185/10/5 | G65: 0.13 | H65: 0.02 | I65: 10.2 | J65: 42 | K65: 377
D66: хлеб | E66: Хлеб ржаной | F66: 30 | G66: 1.98 | H66: 0.36 | I66: 11.88 | J66: 59.4 | K66: 134
D70: итого | F70: 490 | G70: =SUM(G63:G69) -> 6.99 | H70: =SUM(H63:H69) -> 5.32 | I70: =SUM(I63:I69) -> 38.98 | J70: =SUM(J63:J69) -> 244.8 | L70: 29.73
A71: =A63 -> 1 | B71: =B63 -> 4 | C71: Обед | D71: фрукты | E71: Плоды и ягоды свежие (яблоки) | F71: 100 | G71: 0.4 | H71: 0.4 | I71: 9.8 | J71: 47 | K71: 184
D72: 1 блюдо
D73: 2 блюдо | E73: Сырники из творога с кашей молочной «Дружба» с маслом сливочным | F73: 60/150/5 | G73: 10.55 | H73: 11.85 | I73: 39.4 | J73: 324.45 | K73: ТТК
D74: гарнир
D75: напиток | E75: Кофейный напиток с молоком | F75: 200 | G75: 3.2 | H75: 2.7 | I75: 6 | J75: 60.7 | K75: 379
D76: хлеб бел.
D77: хлеб черн. | E77: Хлеб ржаной | F77: 30 | G77: 1.98 | H77: 0.36 | I77: 11.88 | J77: 59.4 | K77: 144
D80: итого | F80: 545 | G80: =SUM(G71:G79) -> 16.13 | H80: =SUM(H71:H79) -> 15.31 | I80: =SUM(I71:I79) -> 67.08 | J80: =SUM(J71:J79) -> 491.55 | L80: 77.76
A81: =A63 -> 1 | B81: =B63 -> 4 | C81: Итого за день: | F81: =F70+F80 -> 1035 | G81: =G70+G80 -> 23.12 | H81: =H70+H80 -> 20.63 | I81: =I70+I80 -> 106.06 | J81: =J70+J80 -> 736.35 | L81: =L70+L80 -> 107.49
A82: 1 | B82: 5 | C82: Завтрак | D82: гор.блюдо | E82: Харчо с мясом птицы, со сметаной | F82: 250/10/5 | G82: 3.18 | H82: 7.4 | I82: 2.1 | J82: 86.8 | K82: 115
D84: гор.напиток | E84: Компот из сухофруктов | F84: 200 | G84: 0.66 | H84: 0.09 | I84: 22.03 | J84: 92.9 | K84: 349
D85: хлеб | E85: Хлеб ржаной | F85: 30 | G85: 1.98 | H85: 0.36 | I85: 11.88 | J85: 59.4 | K85: 134
D89: итого | F89: 495 | G89: =SUM(G82:G88) -> 5.82 | H89: =SUM(H82:H88) -> 7.85 | I89: =SUM(I82:I88) -> 36.01 | J89: =SUM(J82:J88) -> 239.1 | L89: 29.73
A90: =A82 -> 1 | B90: =B82 -> 5 | C90: Обед | D90: закуска | E90: Салат из квашенной капусты | F90: 60 | G90: 1.02 | H90: 3 | I90: 5.07 | J90: 51.42 | K90: ТТК
D91: 1 блюдо
D92: 2 блюдо | E92: Жаркое по-домашнему с индейкой | F92: 50/150 | G92: 15.33 | H92: 16.99 | I92: 31.77 | J92: 335.2 | K92: ТТК
D93: гарнир
D94: напиток | E94: Напиток из свежих фруктов (75С) | F94: 200 | G94: 0.34 | H94: 0.17 | I94: 21.46 | J94: 103.5 | K94: ТТК
D95: хлеб бел. | E95: Хлеб пшеничный | F95: 45 | G95: 3.42 | H95: 0.36 | I95: 22.14 | J95: 105.75 | K95: 134
D99: итого | F99: 505 | G99: =SUM(G90:G98) -> 20.11 | H99: =SUM(H90:H98) -> 20.52 | I99: =SUM(I90:I98) -> 80.44 | J99: =SUM(J90:J98) -> 595.87 | L99: 77.76
A100: =A82 -> 1 | B100: =B82 -> 5 | C100: Итого за день: | F100: =F89+F99 -> 1000 | G100: =G89+G99 -> 25.93 | H100: =H89+H99 -> 28.37 | I100: =I89+I99 -> 116.45 | J100: =J89+J99 -> 834.97 | L100: =L89+L99 -> 107.49
A101: 2 | B101: 1 | C101: Завтрак | D101: гор.блюдо | E101: Суп картофельный с вермишелью, с куриными фрикадельками | F101: 250/10 | G101: 4.05 | H101: 4.16 | I101: 18.25 | J101: 138.85 | K101: 88
D103: гор.напиток | E103: Чай с сахаром и лимоном | F103: 185/10/5 | G103: 0.13 | H103: 0.02 | I103: 10.2 | J103: 42 | K103: 377
D104: хлеб | E104: Хлеб ржаной | F104: 30 | G104: 1.98 | H104: 0.36 | I104: 11.88 | J104: 59.4 | K104: 134
D108: итого | F108: 490 | G108: =SUM(G101:G107) -> 6.16 | H108: =SUM(H101:H107) -> 4.54 | I108: =SUM(I101:I107) -> 40.33 | J108: =SUM(J101:J107) -> 240.25 | L108: 29.73
A109: =A101 -> 2 | B109: 1 | C109: Обед | D109: фрукты
D110: закуска
D111: 2 блюдо | E111: Сырники из творога с кашей пшенной молочной с маслом сливочным | F111: 60/180/5 | G111: 16.02 | H111: 18.13 | I111: 42.98 | J111: 386.4 | K111: ТТК
D112: гарнир
D113: напиток | E113: Чай «Витаминный» с шиповником | F113: 185/10/5 | G113: 0.24 | H113: 0.09 | I113: 12.43 | J113: 54.2 | K113: 376
D114: хлеб бел. | E114: Хлеб пшеничный | F114: 25 | G114: 1.9 | H114: 0.2 | I114: 12.3 | J114: 58.75 | K114: 134
D115: хлеб черн. | E115: Хлеб ржаной | F115: 30 | G115: 1.98 | H115: 0.36 | I115: 11.88 | J115: 59.4 | K115: 144
D118: итого | F118: 500 | G118: =SUM(G109:G117) -> 20.14 | H118: =SUM(H109:H117) -> 18.78 | I118: =SUM(I109:I117) -> 79.59 | J118: =SUM(J109:J117) -> 558.75 | L118: 77.76
A119: =A101 -> 2 | B119: =B101 -> 1 | C119: Итого за день: | F119: =F108+F118 -> 990 | G119: =G108+G118 -> 26.3 | H119: =H108+H118 -> 23.32 | I119: =I108+I118 -> 119.92 | J119: =J108+J118 -> 799 | L119: =L108+L118 -> 107.49
A120: 2 | B120: 2 | C120: Завтрак | D120: гор.блюдо | E120: Солянка по-домашнему, со сметаной | F120: 250/10 | G120: 8.03 | H120: 9.15 | I120: 7.19 | J120: 168.63
D122: гор.напиток | E122: Чай с сахаром | F122: 190/10 | G122: 0.07 | H122: 0.02 | I122: 10 | J122: 40 | K122: 376
D123: хлеб | E123: Хлеб ржаной | F123: 30 | G123: 1.98 | H123: 0.36 | I123: 11.88 | J123: 59.4 | K123: 134
D127: итого | F127: 490 | G127: =SUM(G120:G126) -> 10.08 | H127: =SUM(H120:H126) -> 9.53 | I127: =SUM(I120:I126) -> 29.07 | J127: =SUM(J120:J126) -> 268.03 | L127: 29.73
A128: =A120 -> 2 | B128: 2 | C128: Обед | D128: закуска | E128: Салат из свеклы с сыром | F128: 60 | G128: 1.84 | H128: 3.74 | I128: 9.78 | J128: 78.42 | K128: ТТК
D129: 1 блюдо
D130: 2 блюдо | E130: Рыба, тушенная в томате с овощами | F130: 50/50 | G130: 9.05 | H130: 6.09 | I130: 3.8 | J130: 105 | K130: 229
D131: гарнир | E131: Пюре картофельное с маслом сливочным | F131: 150/3 | G131: 3.08 | H131: 6.25 | I131: 20.47 | J131: 150.45 | K131: 312
D132: напиток | E132: Компот из свежих яблок (75С) | F132: 200 | G132: 0.16 | H132: 0.1 | I132: 17.9 | J132: 74.6 | K132: 342
D134: хлеб черн. | E134: Хлеб ржаной | F134: 30 | G134: 1.98 | H134: 0.36 | I134: 11.88 | J134: 59.4 | K134: 144
D137: итого | F137: 543 | G137: =SUM(G128:G136) -> 16.11 | H137: =SUM(H128:H136) -> 16.54 | I137: =SUM(I128:I136) -> 63.83 | J137: =SUM(J128:J136) -> 467.87 | L137: 77.76
A138: =A120 -> 2 | B138: =B120 -> 2 | C138: Итого за день: | F138: =F127+F137 -> 1033 | G138: =G127+G137 -> 26.19 | H138: =H127+H137 -> 26.07 | I138: =I127+I137 -> 92.9 | J138: =J127+J137 -> 735.9 | L138: =L127+L137 -> 107.49
A139: 2 | B139: 3 | C139: Завтрак | D139: гор.блюдо | E139: Щи из свежей капусты с картофелем на курином бульоне, с мясом птицы, со сметаной | F139: 250/10/5 | G139: 4.37 | H139: 8.31 | I139: 8.3 | J139: 132.15 | K139: 88
D141: гор.напиток | E141: Напиток из шиповника | F141: 200 | G141: 0.68 | H141: 0.28 | I141: 10.78 | J141: 48.2 | K141: ТТК
D142: хлеб | E142: Хлеб ржаной | F142: 30 | G142: 1.98 | H142: 0.36 | I142: 11.88 | J142: 59.4 | K142: 134
D146: итого | F146: 485 | G146: =SUM(G139:G145) -> 7.03 | H146: =SUM(H139:H145) -> 8.95 | I146: =SUM(I139:I145) -> 30.96 | J146: =SUM(J139:J145) -> 239.75 | L146: 29.73
A147: =A139 -> 2 | B147: 3 | C147: Обед | D147: фрукты | E147: Плоды и ягоды свежие (яблоки) | F147: 100 | G147: 0.4 | H147: 0.4 | I147: 9.8 | J147: 47 | K147: 184
D148: 1 блюдо
D149: 2 блюдо | E149: Плов из говядины с рисовой крупой | F149: 50/150 | G149: 15.95 | H149: 19.55 | I149: 39.75 | J149: 408.42 | K149: 265
D150: гарнир
D151: напиток | E151: Чай с сахаром | F151: 190/10 | G151: 0.07 | H151: 0.02 | I151: 10.01 | J151: 40 | K151: 376
D152: хлеб бел. | E152: Хлеб пшеничный | F152: 25 | G152: 1.9 | H152: 0.2 | I152: 12.3 | J152: 58.75 | K152: 134
D153: хлеб | E153: Хлеб ржаной | F153: 20 | G153: 1.32 | H153: 0.24 | I153: 7.92 | J153: 39.6 | K153: 144
D156: итого | F156: 545 | G156: =SUM(G147:G155) -> 19.64 | H156: =SUM(H147:H155) -> 20.41 | I156: =SUM(I147:I155) -> 79.78 | J156: =SUM(J147:J155) -> 593.77 | L156: 77.76
A157: =A139 -> 2 | B157: =B139 -> 3 | C157: Итого за день: | F157: =F146+F156 -> 1030 | G157: =G146+G156 -> 26.67 | H157: =H146+H156 -> 29.36 | I157: =I146+I156 -> 110.74 | J157: =J146+J156 -> 833.52 | L157: =L146+L156 -> 107.49
A158: 2 | B158: 4 | C158: Завтрак | D158: гор.блюдо | E158: Рассольник домашний с мясными фрикадельками | F158: 250/10 | G158: 4.09 | H158: 6.26 | I158: 12.76 | J158: 134.11 | K158: 95
D160: гор.напиток | E160: Компот из изюма и урюка | F160: 200 | G160: 0.55 | H160: 0.07 | I160: 18.89 | J160: 79.3 | K160: ТТК
D161: хлеб | E161: Хлеб ржаной | F161: 30 | G161: 1.98 | H161: 0.36 | I161: 11.88 | J161: 59.4 | K161: 134
D165: итого | F165: 490 | G165: =SUM(G158:G164) -> 6.62 | H165: =SUM(H158:H164) -> 6.69 | I165: =SUM(I158:I164) -> 43.53 | J165: =SUM(J158:J164) -> 272.81 | L165: 29.73
A166: =A158 -> 2 | B166: 4 | C166: Обед | D166: закуска | E166: Салат из зеленого горошка к/с | F166: 60 | G166: 1.09 | H166: 1.31 | I166: 16.95 | J166: 60.16 | K166: ТТК
D167: 1 блюдо
D168: 2 блюдо | E168: Котлета из мяса птицы с макаронными изделиями отварными, с маслом сливочным | F168: 75/150/3 | G168: 11.43 | H168: 11.41 | I168: 31.29 | J168: 276.75 | K168: ТТК
D169: гарнир
D170: напиток | E170: Какао с молоком | F170: 200 | G170: 4.08 | H170: 3.54 | I170: 7.6 | J170: 78.6 | K170: 382
D171: хлеб бел. | E171: Хлеб пшеничный | F171: 25 | G171: 1.9 | H171: 0.2 | I171: 12.3 | J171: 58.75 | K171: 134
D175: итого | F175: 513 | G175: =SUM(G166:G174) -> 18.5 | H175: =SUM(H166:H174) -> 16.46 | I175: =SUM(I166:I174) -> 68.14 | J175: =SUM(J166:J174) -> 474.26 | L175: 77.76
A176: =A158 -> 2 | B176: =B158 -> 4 | C176: Итого за день: | F176: =F165+F175 -> 1003 | G176: =G165+G175 -> 25.12 | H176: =H165+H175 -> 23.15 | I176: =I165+I175 -> 111.67 | J176: =J165+J175 -> 747.07 | L176: =L165+L175 -> 107.49
A177: 2 | B177: 5 | C177: Завтрак | D177: гор.блюдо | E177: Суп крестьянский с крупой пшено с куриными фрикадельками, со сметаной | F177: 250/10/5 | G177: 2.98 | H177: 6.99 | I177: 7.07 | J177: 104.95 | K177: 98
D179: гор.напиток | E179: Чай с сахаром | F179: 190/10 | G179: 0.07 | H179: 0.02 | I179: 10 | J179: 40 | K179: 376
D180: хлеб | E180: Хлеб ржаной | F180: 30 | G180: 1.98 | H180: 0.36 | I180: 11.88 | J180: 59.4 | K180: 134
D184: итого | F184: 495 | G184: =SUM(G177:G183) -> 5.03 | H184: =SUM(H177:H183) -> 7.37 | I184: =SUM(I177:I183) -> 28.95 | J184: =SUM(J177:J183) -> 204.35 | L184: 29.73
A185: =A177 -> 2 | B185: 5 | C185: Обед | D185: фрукты | E185: Плоды и ягоды свежие (апельсины) | F185: 180 | G185: 1.62 | H185: 0.36 | I185: 14.58 | J185: 77.4 | K185: 184
D186: 1 блюдо
D187: 2 блюдо | E187: Овощи тушеные с мясом | F187: 50/150 | G187: 12.48 | H187: 15.68 | I187: 19.34 | J187: 271.5 | K187: 143/241
D188: гарнир
D189: напиток | E189: Компот из сухофруктов (75С) | F189: 200 | G189: 0.66 | H189: 0.09 | I189: 22.03 | J189: 92.8 | K189: 349
D190: хлеб | E190: Хлеб ржаной | F190: 20 | G190: 1.32 | H190: 0.24 | I190: 7.92 | J190: 39.6 | K190: 144
D194: итого | F194: 600 | G194: =SUM(G185:G193) -> 16.08 | H194: =SUM(H185:H193) -> 16.37 | I194: =SUM(I185:I193) -> 63.87 | J194: =SUM(J185:J193) -> 481.3 | L194: 77.76
A195: =A177 -> 2 | B195: =B177 -> 5 | C195: Итого за день: | F195: =F184+F194 -> 1095 | G195: =G184+G194 -> 21.11 | H195: =H184+H194 -> 23.74 | I195: =I184+I194 -> 92.82 | J195: =J184+J194 -> 685.65 | L195: =L184+L194 -> 107.49
C196: Среднее значение за период: | F196: =(F24+F43+F62+F81+F100+F119+F138+F157+F176+F195)/(IF(F24=0,0,1)+IF(F43=0,0,1)+IF(F62=0,0,1)+IF(F81=0,0,1)+IF(F100=0,0,1)+IF(F119=0,0,1)+IF(F138=0,0,1)+IF(F157=0,0,1)+IF(F176=0,0,1)+IF(F195=0,0,1)) -> 1027.9 | G196: =(G24+G43+G62+G81+G100+G119+G138+G157+G176+G195)/(IF(G24=0,0,1)+IF(G43=0,0,1)+IF(G62=0,0,1)+IF(G81=0,0,1)+IF(G100=0,0,1)+IF(G119=0,0,1)+IF(G138=0,0,1)+IF(G157=0,0,1)+IF(G176=0,0,1)+IF(G195=0,0,1)) -> 24.997 | H196: =(H24+H43+H62+H81+H100+H119+H138+H157+H176+H195)/(IF(H24=0,0,1)+IF(H43=0,0,1)+IF(H62=0,0,1)+IF(H81=0,0,1)+IF(H100=0,0,1)+IF(H119=0,0,1)+IF(H138=0,0,1)+IF(H157=0,0,1)+IF(H176=0,0,1)+IF(H195=0,0,1)) -> 25.254 | I196: =(I24+I43+I62+I81+I100+I119+I138+I157+I176+I195)/(IF(I24=0,0,1)+IF(I43=0,0,1)+IF(I62=0,0,1)+IF(I81=0,0,1)+IF(I100=0,0,1)+IF(I119=0,0,1)+IF(I138=0,0,1)+IF(I157=0,0,1)+IF(I176=0,0,1)+IF(I195=0,0,1)) -> 109.264 | J196: =(J24+J43+J62+J81+J100+J119+J138+J157+J176+J195)/(IF(J24=0,0,1)+IF(J43=0,0,1)+IF(J62=0,0,1)+IF(J81=0,0,1)+IF(J100=0,0,1)+IF(J119=0,0,1)+IF(J138=0,0,1)+IF(J157=0,0,1)+IF(J176=0,0,1)+IF(J195=0,0,1)) -> 695.514 | L196: =(L24+L43+L62+L81+L100+L119+L138+L157+L176+L195)/(IF(L24=0,0,1)+IF(L43=0,0,1)+IF(L62=0,0,1)+IF(L81=0,0,1)+IF(L100=0,0,1)+IF(L119=0,0,1)+IF(L138=0,0,1)+IF(L157=0,0,1)+IF(L176=0,0,1)+IF(L195=0,0,1)) -> 107.49
